Workbook

Sheet mokhtar
A1: n° | B1: Nom | C1: Prénom | D1: CIN | E1: Adresse | F1: Ville | G1: Lien de parenté avec le défunt | H1: parts dans l'héritage | I1: QP dans les biens à partager | J1: n° du bien | K1: Nom du bien | L1: Valeur du bien | M1: Nom du bien | N1: Valeur du bien | O1: Différence | P1: Soulte à verser | Q1: Soultes à encaisser
A2: 1 | B2: a | C2: Mohammed | H2: 21 | I2: =Tvaleurs *H2/Tparts -> 109821.4286 | J2: 1 | K2: =VLOOKUP(J2,Biens,2,FALSE) -> TF 777 77 | L2: =VLOOKUP(J2,Biens,6,FALSE) -> 110000 | M2: =IF(ISNUMBER(L2),K2, "") -> TF 777 77 | N2: =IF(ISNUMBER(L2),L2, 0) -> 110000 | O2: =I2-N2 -> -178.5714286 | P2: =MAX(0, - O2) -> 178.5714286 | Q2: =MAX(0, O2) -> 0
A3: 2 | B3: b | C3: Abdellah | H3: 23 | I3: 120280.6122 | J3: 2 | K3: TF 6666 66 | L3: 120000 | M3: =IF(ISNUMBER(L3),K3, "") -> TF 6666 66 | N3: =IF(ISNUMBER(L3),L3, 0) -> 120000 | O3: =I3-N3 -> 280.6122449 | P3: =MAX(0, - O3) -> 0 | Q3: =MAX(0, O3) -> 280.6122449
A4: 3 | B4: B | C4: Abdelkrim | H4: 25 | I4: 130739.7959 | J4: 3 | K4: TF 8765 65 | L4: 130000 | M4: TF 8765 65 | N4: 130000 | O4: 739.7959184 | P4: 0 | Q4: 739.7959184
A5: 4 | B5: a | C5: Aberrazzaq | H5: 27 | I5: 141198.9796 | J5: 4 | K5: TF 32123 33 | L5: 140000 | M5: TF 32123 33 | N5: 140000 | O5: 1198.979592 | P5: 0 | Q5: 1198.979592
A6: 5 | B6: b | C6: Adil | H6: 29 | I6: 151658.1633 | J6: 5 | K6: TF 432111 | L6: 150000 | M6: TF 432111 | N6: 150000 | O6: 1658.163265 | P6: 0 | Q6: 1658.163265
A7: 6 | B7: c | C7: Bachir | H7: 31 | I7: 162117.3469 | J7: 6 | K7: 55 | L7: 160000 | M7: 55 | N7: 160000 | O7: 2117.346939 | P7: 0 | Q7: 2117.346939
A8: 7 | B8: a | C8: françois | H8: 32 | I8: 167346.9388 | J8: 7 | K8: =VLOOKUP(J8,Biens,2,FALSE) -> 56 | L8: =VLOOKUP(J8,Biens,6,FALSE) -> 170000 | M8: =IF(ISNUMBER(L8),K8, "") -> 56 | N8: =IF(ISNUMBER(L8),L8, 0) -> 170000 | O8: -2653.061224 | P8: 2653.061224 | Q8: 0
A9: 8 | B9: b | C9: Grégoire | H9: 34 | I9: 177806.1224 | J9: 8 | K9: 57 | L9: 180000 | M9: 57 | N9: 180000 | O9: -2193.877551 | P9: 2193.877551 | Q9: 0
A10: 9 | B10: c | C10: Henri | H10: 36 | I10: 188265.3061 | J10: 9 | K10: 58 | L10: 190000 | M10: 58 | N10: 190000 | O10: -1734.693878 | P10: 1734.693878 | Q10: 0
A11: 10 | B11: a | C11: Irène | H11: 38 | I11: 198724.4898 | J11: 10 | K11: 59 | L11: 200000 | M11: 59 | N11: 200000 | O11: -1275.510204 | P11: 1275.510204 | Q11: 0
A12: 11 | B12: b | C12: Jacques | H12: 40 | I12: 209183.6735 | J12: 11 | K12: 60 | L12: 210000 | M12: 60 | N12: 210000 | O12: -816.3265306 | P12: 816.3265306 | Q12: 0
A13: 12 | B13: c | C13: Karène | H13: 42 | I13: 219642.8571 | J13: 12 | K13: 61 | L13: 220000 | M13: 61 | N13: 220000 | O13: -357.1428571 | P13: 357.1428571 | Q13: 0
A14: 13 | B14: a | C14: Laurent | H14: 44 | I14: 230102.0408 | J14: 13 | K14: 62 | L14: 230000 | M14: 62 | N14: 230000 | O14: 102.0408163 | P14: 0 | Q14: 102.0408163
A15: 14 | B15: b | C15: Mariane | H15: 46 | I15: 240561.2245 | J15: 14 | K15: 63 | L15: 240000 | M15: 63 | N15: 240000 | O15: 561.2244898 | P15: 0 | Q15: 561.2244898
A16: 15 | B16: c | C16: Nelly | H16: 48 | I16: 251020.4082 | J16: 15 | K16: 64 | L16: 250000 | M16: 64 | N16: 250000 | O16: 1020.408163 | P16: 0 | Q16: 1020.408163
A17: 16 | B17: a | C17: Oscar | H17: 50 | I17: 261479.5918 | J17: 16 | K17: 65 | L17: 260000 | M17: 65 | N17: 260000 | O17: 1479.591837 | P17: 0 | Q17: 1479.591837
A18: 17 | B18: b | C18: Paul | H18: 52 | I18: 271938.7755 | J18: 17 | K18: 66 | L18: 270000 | M18: 66 | N18: 270000 | O18: 1938.77551 | P18: 0 | Q18: 1938.77551
A19: 18 | B19: c | C19: Robert | H19: 54 | I19: 282397.9592 | J19: 18 | K19: 67 | L19: 280000 | M19: 67 | N19: 280000 | O19: 2397.959184 | P19: 0 | Q19: 2397.959184
A20: 19 | B20: a | C20: Suzane | H20: 55 | I20: 287627.551 | J20: 19 | K20: 68 | L20: 290000 | M20: 68 | N20: 290000 | O20: -2372.44898 | P20: 2372.44898 | Q20: 0
A21: 20 | B21: b | C21: Thierry | H21: 57 | I21: 298086.7347 | J21: 20 | K21: 69 | L21: 300000 | M21: 69 | N21: 300000 | O21: -1913.265306 | P21: 1913.265306 | Q21: 0
G22: totaux | H22: =SUM(H2:H21) -> 784 | I22: =SUM(I2:I21) -> 4100000 | N22: =SUM(N2:N21) -> 4100000 | O22: =SUM(O2:O21) -> 5.820766091e-11 | P22: =SUM(P2:P21) -> 13494.89796 | Q22: 13494.89796
H23: Valeur de la part | I23: =I22/Tparts -> 5229.591837
A25: n° | B25: Désignation | C25: Description | D25: Date acquisition | E25: Valeur acquisition | F25: Valeur actuelle | I25: En cas de besoin, posez vos questions sur
A26: 1 | B26: TF 777 77 | C26: appartement 15 | F26: 110000
A27: 2 | B27: TF 6666 66 | C27: magasin daoura | F27: 120000 | I27: le forum www.maroc-compta.net
A28: 3 | B28: TF 8765 65 | C28: terrain tit mellil | F28: 130000
A29: 4 | B29: TF 32123 33 | C29: appartement 17 | F29: 140000
A30: 5 | B30: TF 432111 | C30: maison berrechid | F30: 150000
A31: 6 | B31: 55 | C31: AAA | F31: 160000
A32: 7 | B32: 56 | F32: 170000 | H32: 5
A33: 8 | B33: 57 | F33: 180000
A34: 9 | B34: 58 | F34: 190000
A35: 10 | B35: 59 | F35: 200000
A36: 11 | B36: 60 | F36: 210000
A37: 12 | B37: 61 | F37: 220000
A38: 13 | B38: 62 | F38: 230000
A39: 14 | B39: 63 | F39: 240000
A40: 15 | B40: 64 | F40: 250000
A41: 16 | B41: 65 | F41: 260000
A42: 17 | B42: 66 | F42: 270000
A43: 18 | B43: 67 | F43: 280000
A44: 19 | B44: 68 | F44: 290000
A45: 20 | B45: 69 | F45: 300000
E46: Valeur total des biens à affecter | F46: =+SUM(F26:F45) -> 4100000

Sheet Feuil2

Sheet Feuil3
